[Event "Kvibergspelen 2022"]
[Site "Kviberg Park Hotel & Conference, Krutvagen 2, Gothenburg, Sweden"]
[Date "2022.10.01"]
[Round "6.8"]
[White "Olsson, William"]
[Black "Fridgeirsson, Dagur Andri"]
[Result "1-0"]
[TimeControl "15 minutes + 5 seconds per move from move one (Round 1 - 4) / 90 minutes + 30 seconds per move from move one (Round 5 - 8)"]
[WhiteTitle "FM"]
[WhiteFideId "1741721"]
[BlackFideId "2303124"]
[WhiteElo "2288"]
[BlackElo "1943"]

1. c4 {[%clk 01:30:59]} {[%emt 00:17:04]} e5 {[%clk 01:29:12]} {[%emt
00:01:48]} 2. g3 {[%clk 01:31:25]} {[%emt 00:00:05]} Nf6 {[%clk 01:29:16]}
{[%emt 00:00:25]} 3. Bg2 {[%clk 01:31:50]} {[%emt 00:00:05]} d5 {[%clk
01:26:58]} {[%emt 00:02:50]} 4. cxd5 {[%clk 01:32:02]} {[%emt 00:00:16]} Nxd5
{[%clk 01:27:18]} {[%emt 00:00:10]} 5. Nf3 {[%clk 01:32:28]} {[%emt 00:00:04]}
Nc6 {[%clk 01:27:25]} {[%emt 00:00:23]} 6. O-O {[%clk 01:32:50]} {[%emt
00:00:08]} Be7 {[%clk 01:27:29]} {[%emt 00:00:26]} 7. d4 {[%clk 01:33:16]}
{[%emt 00:00:04]} e4 {[%clk 01:20:33]} {[%emt 00:07:26]} 8. Ne5 {[%clk
01:33:36]} {[%emt 00:00:10]} f5 {[%clk 01:17:13]} {[%emt 00:03:49]} 9. Nxc6
{[%clk 01:33:46]} {[%emt 00:00:21]} bxc6 {[%clk 01:17:29]} {[%emt 00:00:14]} 10.
Qa4 {[%clk 01:30:58]} {[%emt 00:03:18]} Bd7 {[%clk 01:17:11]} {[%emt 00:00:49]}
11. Qc4 {[%clk 01:30:50]} {[%emt 00:00:38]} Rb8 {[%clk 01:14:07]} {[%emt
00:03:34]} 12. a3 {[%clk 01:27:45]} {[%emt 00:03:35]} Rb6 {[%clk 01:08:37]}
{[%emt 00:06:00]} 13. Nc3 {[%clk 01:21:42]} {[%emt 00:06:31]} Be6 {[%clk
01:05:18]} {[%emt 00:03:51]} 14. Qa4 {[%clk 01:10:46]} {[%emt 00:11:26]} O-O
{[%clk 01:02:42]} {[%emt 00:03:06]} 15. Nxd5 {[%clk 00:59:43]} {[%emt
00:11:33]} Bxd5 {[%clk 01:01:26]} {[%emt 00:01:46]} 16. b4 {[%clk 00:55:09]}
{[%emt 00:05:04]} a5 {[%clk 00:52:44]} {[%emt 00:09:11]} 17. Qxa5 {[%clk
00:52:47]} {[%emt 00:02:53]} Bc4 {[%clk 00:52:39]} {[%emt 00:00:35]} 18. Bf4
{[%clk 00:48:41]} {[%emt 00:04:37]} Bd6 {[%clk 00:31:05]} {[%emt 00:22:03]} 19.
Bxd6 {[%clk 00:48:22]} {[%emt 00:00:49]} Qxd6 {[%clk 00:26:42]} {[%emt
00:04:53]} 20. Qc5 {[%clk 00:47:24]} {[%emt 00:01:28]} Bxe2 {[%clk 00:26:23]}
{[%emt 00:00:49]} 21. Rfc1 {[%clk 00:46:34]} {[%emt 00:01:20]} g6 {[%clk
00:19:41]} {[%emt 00:07:12]} 22. Ra2 {[%clk 00:39:42]} {[%emt 00:07:23]} Bd3
{[%clk 00:17:59]} {[%emt 00:02:11]} 23. Bf1 {[%clk 00:37:53]} {[%emt 00:02:19]}
Ra8 {[%clk 00:14:53]} {[%emt 00:03:36]} 24. Bxd3 {[%clk 00:29:43]} {[%emt
00:08:40]} exd3 {[%clk 00:15:19]} {[%emt 00:00:04]} 25. Rca1 {[%clk 00:29:23]}
{[%emt 00:00:50]} Qd5 {[%clk 00:13:07]} {[%emt 00:02:41]} 26. Qc3 {[%clk
00:28:27]} {[%emt 00:01:27]} Rd8 {[%clk 00:09:09]} {[%emt 00:04:27]} 27. Qxd3
{[%clk 00:28:05]} {[%emt 00:00:52]} Qxd4 {[%clk 00:09:30]} {[%emt 00:00:10]} 28.
Qb3+ {[%clk 00:28:14]} {[%emt 00:00:22]} Qd5 {[%clk 00:09:48]} {[%emt
00:00:12]} 29. Qe3 {[%clk 00:28:12]} {[%emt 00:00:30]} Qe4 {[%clk 00:06:11]}
{[%emt 00:04:08]} 30. Qg5 {[%clk 00:25:55]} {[%emt 00:02:47]} Rd3 {[%clk
00:05:35]} {[%emt 00:01:06]} 31. Rd2 {[%clk 00:25:57]} {[%emt 00:00:28]} Rxd2
{[%clk 00:02:52]} {[%emt 00:03:13]} 32. Qxd2 {[%clk 00:26:22]} {[%emt
00:00:05]} Qd5 {[%clk 00:02:44]} {[%emt 00:00:38]} 33. Qf4 {[%clk 00:26:07]}
{[%emt 00:00:45]} Qd6 {[%clk 00:02:47]} {[%emt 00:00:26]} 34. Qe3 {[%clk
00:25:51]} {[%emt 00:00:47]} Rb8 {[%clk 00:02:39]} {[%emt 00:00:38]} 35. Re1
{[%clk 00:25:35]} {[%emt 00:00:46]} Rf8 {[%clk 00:02:17]} {[%emt 00:00:51]} 36.
Qb3+ {[%clk 00:20:35]} {[%emt 00:05:31]} Qd5 {[%clk 00:02:28]} {[%emt
00:00:18]} 37. Qc3 {[%clk 00:19:19]} {[%emt 00:01:46]} Qd6 {[%clk 00:02:23]}
{[%emt 00:00:32]} 38. Rc1 {[%clk 00:19:14]} {[%emt 00:00:38]} Ra8 {[%clk
00:00:48]} {[%emt 00:02:04]} 39. Re1 {[%clk 00:17:20]} {[%emt 00:02:24]} Rf8
{[%clk 00:01:12]} {[%emt 00:00:07]} 40. a4 {[%clk 00:17:01]} {[%emt 00:00:49]}
f4 {[%clk 00:01:19]} {[%emt 00:00:23]} 41. a5 {[%clk 00:16:48]} {[%emt
00:00:43]} Qd5 {[%clk 00:00:38]} {[%emt 00:01:10]} 42. g4 {[%clk 00:14:32]}
{[%emt 00:02:47]} f3 {[%clk 00:00:41]} {[%emt 00:00:27]} 43. h3 {[%clk
00:14:53]} {[%emt 00:00:09]} h5 {[%clk 00:00:47]} {[%emt 00:00:25]} 44. Re7
{[%clk 00:11:49]} {[%emt 00:03:33]} Qd1+ {[%clk 00:00:36]} {[%emt 00:00:40]} 45.
Kh2 {[%clk 00:12:16]} {[%emt 00:00:04]} Qd6+ {[%clk 00:01:04]} {[%emt
00:00:02]} 46. Qe5 {[%clk 00:12:37]} {[%emt 00:00:09]} Qxe5+ {[%clk 00:01:00]}
{[%emt 00:00:34]} 47. Rxe5 {[%clk 00:12:36]} {[%emt 00:00:31]} hxg4 {[%clk
00:01:16]} {[%emt 00:00:14]} 48. hxg4 {[%clk 00:12:18]} {[%emt 00:00:48]} Kf7
{[%clk 00:00:32]} {[%emt 00:01:14]} 49. Rc5 {[%clk 00:12:12]} {[%emt 00:00:36]}
Rb8 {[%clk 00:00:40]} {[%emt 00:00:22]} 50. Rc4 {[%clk 00:10:46]} {[%emt
00:01:56]} c5 {[%clk 00:00:33]} {[%emt 00:00:37]} 51. bxc5 {[%clk 00:10:54]}
{[%emt 00:00:22]} Ra8 {[%clk 00:00:54]} {[%emt 00:00:09]} 52. Ra4 {[%clk
00:10:54]} {[%emt 00:00:29]} Ra6 {[%clk 00:01:24]} 53. Kg3 {[%clk 00:11:05]}
{[%emt 00:00:19]} Ke6 {[%clk 00:01:44]} {[%emt 00:00:09]} 54. Kxf3 {[%clk
00:08:54]} {[%emt 00:02:42]} Kd5 {[%clk 00:02:09]} {[%emt 00:00:05]} 55. Ke3
{[%clk 00:08:16]} {[%emt 00:01:08]} Kxc5 {[%clk 00:02:32]} {[%emt 00:00:07]} 56.
f4 {[%clk 00:08:35]} {[%emt 00:00:11]} Kb5 {[%clk 00:02:37]} {[%emt 00:00:25]}
57. Ra1 {[%clk 00:08:55]} {[%emt 00:00:10]} c5 {[%clk 00:02:33]} {[%emt
00:00:34]} 58. f5 {[%clk 00:08:27]} {[%emt 00:00:58]} gxf5 {[%clk 00:02:46]}
{[%emt 00:00:17]} 59. gxf5 {[%clk 00:08:50]} {[%emt 00:00:06]} c4 {[%clk
00:02:37]} {[%emt 00:00:40]} 60. Kd4 {[%clk 00:09:17]} {[%emt 00:00:03]} Rd6+
{[%clk 00:02:38]} {[%emt 00:00:29]} 61. Ke5 {[%clk 00:09:20]} {[%emt 00:00:27]}
Ra6 {[%clk 00:02:34]} {[%emt 00:00:34]} 62. f6 {[%clk 00:09:42]} {[%emt
00:00:09]} c3 {[%clk 00:02:21]} {[%emt 00:00:43]} 63. f7 {[%clk 00:10:05]}
{[%emt 00:00:06]} Ra8 {[%clk 00:02:22]} {[%emt 00:00:29]} 64. Kf6 {[%clk
00:09:50]} {[%emt 00:00:45]} c2 {[%clk 00:01:18]} {[%emt 00:01:34]} 65. Rc1
{[%clk 00:09:45]} {[%emt 00:00:35]} Rc8 {[%clk 00:01:09]} {[%emt 00:00:39]} 66.
Kg7 {[%clk 00:10:07]} {[%emt 00:00:07]} 1-0

[Event "Kvibergspelen 2022"]
[Site "Kviberg Park Hotel & Conference, Krutvagen 2, Gothenburg, Sweden"]
[Date "2022.10.01"]
[Round "6.9"]
[White "Bohman Karlholm, Adrian"]
[Black "Hauksson, Hordur Aron"]
[Result "1-0"]
[TimeControl "15 minutes + 5 seconds per move from move one (Round 1 - 4) / 90 minutes + 30 seconds per move from move one (Round 5 - 8)"]
[WhiteFideId "1720643"]
[BlackFideId "2303680"]
[WhiteElo "2117"]
[BlackElo "1882"]

1. d4 {[%clk 01:30:57]} {[%emt 00:00:02]} Nf6 {[%clk 01:30:53]} {[%emt
00:00:07]} 2. c4 {[%clk 01:31:19]} {[%emt 00:00:09]} e6 {[%clk 01:31:19]}
{[%emt 00:00:05]} 3. Nc3 {[%clk 01:31:27]} {[%emt 00:00:21]} Bb4 {[%clk
01:31:37]} {[%emt 00:00:13]} 4. Qc2 {[%clk 01:31:04]} {[%emt 00:00:54]} O-O
{[%clk 01:31:42]} {[%emt 00:00:23]} 5. e4 {[%clk 01:30:50]} {[%emt 00:00:43]}
d5 {[%clk 01:30:18]} {[%emt 00:01:55]} 6. e5 {[%clk 01:30:44]} {[%emt
00:00:36]} Ne4 {[%clk 01:30:19]} {[%emt 00:00:30]} 7. Bd3 {[%clk 01:30:16]}
{[%emt 00:00:57]} c5 {[%clk 01:20:28]} {[%emt 00:10:21]} 8. Nf3 {[%clk
01:29:05]} {[%emt 00:01:41]} cxd4 {[%clk 01:06:07]} {[%emt 00:14:52]} 9. Nxd4
{[%clk 01:29:14]} {[%emt 00:00:20]} dxc4 {[%clk 01:05:00]} {[%emt 00:01:38]} 10.
Bxe4 {[%clk 01:29:03]} {[%emt 00:00:41]} Qxd4 {[%clk 01:05:18]} {[%emt
00:00:12]} 11. Bf4 {[%clk 01:17:22]} {[%emt 00:12:10]} h6 {[%clk 01:00:34]}
{[%emt 00:05:15]} 12. O-O {[%clk 01:14:09]} {[%emt 00:03:43]} Bxc3 {[%clk
01:00:40]} {[%emt 00:00:24]} 13. Rad1 {[%clk 01:13:56]} {[%emt 00:00:43]} Qc5
{[%clk 00:58:38]} {[%emt 00:02:32]} 14. Qxc3 {[%clk 01:14:16]} {[%emt
00:00:10]} Nd7 {[%clk 00:47:27]} {[%emt 00:11:42]} 15. Qg3 {[%clk 00:57:05]}
{[%emt 00:17:40]} f5 {[%clk 00:33:32]} {[%emt 00:14:26]} 16. exf6 {[%clk
00:45:42]} {[%emt 00:11:52]} Rxf6 {[%clk 00:33:33]} {[%emt 00:00:29]} 17. Bxb7
{[%clk 00:44:02]} {[%emt 00:02:09]} Bxb7 {[%clk 00:29:28]} {[%emt 00:04:36]} 18.
Rxd7 {[%clk 00:44:23]} {[%emt 00:00:08]} Rf7 {[%clk 00:29:39]} {[%emt
00:00:20]} 19. Rfd1 {[%clk 00:40:52]} {[%emt 00:04:00]} Bd5 {[%clk 00:15:48]}
{[%emt 00:14:22]} 20. Rxf7 {[%clk 00:36:59]} {[%emt 00:04:23]} Kxf7 {[%clk
00:16:12]} {[%emt 00:00:06]} 21. Be5 {[%clk 00:32:10]} {[%emt 00:05:19]} Rg8
{[%clk 00:15:05]} {[%emt 00:01:37]} 22. h4 {[%clk 00:31:51]} {[%emt 00:00:49]}
g5 {[%clk 00:07:49]} {[%emt 00:07:46]} 23. Bd4 {[%clk 00:28:54]} {[%emt
00:03:27]} Qe7 {[%clk 00:07:29]} {[%emt 00:00:50]} 24. h5 {[%clk 00:28:56]}
{[%emt 00:00:28]} Rf8 {[%clk 00:05:00]} {[%emt 00:03:00]} 25. Qe5 {[%clk
00:27:35]} {[%emt 00:01:50]} Ke8 {[%clk 00:04:40]} {[%emt 00:00:51]} 26. b3
{[%clk 00:24:52]} {[%emt 00:03:12]} cxb3 {[%clk 00:02:21]} {[%emt 00:02:49]} 27.
Rc1 {[%clk 00:24:56]} {[%emt 00:00:26]} b2 {[%clk 00:02:10]} {[%emt 00:00:42]}
28. Rc8+ {[%clk 00:24:54]} {[%emt 00:00:30]} Kd7 {[%clk 00:02:31]} {[%emt
00:00:10]} 29. Qc7# {[%clk 00:24:31]} {[%emt 00:00:06]} 1-0

[Event "Kvibergspelen 2022"]
[Site "Kviberg Park Hotel & Conference, Krutvagen 2, Gothenburg, Sweden"]
[Date "2022.10.01"]
[Round "6.10"]
[White "Berntsson, Jonas"]
[Black "Rasti, Arvin"]
[Result "0-1"]
[TimeControl "15 minutes + 5 seconds per move from move one (Round 1 - 4) / 90 minutes + 30 seconds per move from move one (Round 5 - 8)"]
[WhiteFideId "1729470"]
[BlackFideId "1741160"]
[WhiteElo "1915"]
[BlackElo "2186"]

1. d4 {[%clk 01:30:58]} {[%emt 00:00:02]} Nf6 {[%clk 01:30:48]} {[%emt
00:00:12]} 2. c4 {[%clk 01:31:21]} {[%emt 00:00:07]} e6 {[%clk 01:30:45]}
{[%emt 00:00:33]} 3. Nf3 {[%clk 01:31:35]} {[%emt 00:00:16]} d5 {[%clk
01:31:07]} {[%emt 00:00:08]} 4. g3 {[%clk 01:31:50]} {[%emt 00:00:15]} Bb4+
{[%clk 01:30:53]} {[%emt 00:00:44]} 5. Bd2 {[%clk 01:31:44]} {[%emt 00:00:36]}
Bd6 {[%clk 01:31:16]} {[%emt 00:00:06]} 6. Bg2 {[%clk 01:30:24]} {[%emt
00:01:51]} c6 {[%clk 01:31:10]} {[%emt 00:00:36]} 7. Qc2 {[%clk 01:29:29]}
{[%emt 00:01:25]} Nbd7 {[%clk 01:31:29]} {[%emt 00:00:11]} 8. O-O {[%clk
01:29:30]} {[%emt 00:00:29]} O-O {[%clk 01:31:52]} {[%emt 00:00:07]} 9. Bf4
{[%clk 01:24:13]} {[%emt 00:05:47]} Bxf4 {[%clk 01:31:18]} {[%emt 00:01:04]} 10.
gxf4 {[%clk 01:24:29]} {[%emt 00:00:14]} Ne4 {[%clk 01:30:46]} {[%emt
00:01:01]} 11. Ne5 {[%clk 01:18:43]} {[%emt 00:06:18]} f5 {[%clk 01:28:50]}
{[%emt 00:02:25]} 12. f3 {[%clk 01:05:05]} {[%emt 00:14:08]} Nd6 {[%clk
01:25:44]} {[%emt 00:03:35]} 13. c5 {[%clk 01:00:10]} {[%emt 00:05:25]} Ne8
{[%clk 01:21:33]} {[%emt 00:04:40]} 14. e3 {[%clk 00:55:28]} {[%emt 00:05:14]}
Nxe5 {[%clk 01:14:48]} {[%emt 00:07:14]} 15. fxe5 {[%clk 00:54:51]} {[%emt
00:01:08]} f4 {[%clk 01:14:09]} {[%emt 00:01:08]} 16. e4 {[%clk 00:48:59]}
{[%emt 00:06:23]} dxe4 {[%clk 01:13:53]} {[%emt 00:00:46]} 17. Qxe4 {[%clk
00:49:21]} {[%emt 00:00:08]} Nc7 {[%clk 01:13:56]} {[%emt 00:00:27]} 18. Nd2
{[%clk 00:49:34]} {[%emt 00:00:17]} Nb5 {[%clk 01:11:07]} {[%emt 00:03:18]} 19.
Nb3 {[%clk 00:46:45]} {[%emt 00:03:19]} Bd7 {[%clk 01:10:11]} {[%emt 00:01:26]}
20. Rfd1 {[%clk 00:38:49]} {[%emt 00:08:27]} Be8 {[%clk 01:09:30]} {[%emt
00:01:10]} 21. Bf1 {[%clk 00:37:59]} {[%emt 00:01:20]} Bg6 {[%clk 01:08:43]}
{[%emt 00:01:17]} 22. Qe1 {[%clk 00:28:32]} {[%emt 00:09:58]} Nc7 {[%clk
01:07:49]} {[%emt 00:01:23]} 23. Na5 {[%clk 00:27:58]} {[%emt 00:01:04]} Rb8
{[%clk 01:07:58]} {[%emt 00:00:21]} 24. Nc4 {[%clk 00:27:26]} {[%emt 00:01:04]}
Nd5 {[%clk 01:07:27]} {[%emt 00:01:00]} 25. Rd2 {[%clk 00:26:51]} {[%emt
00:01:04]} Rf5 {[%clk 01:06:26]} {[%emt 00:01:31]} 26. Kh1 {[%clk 00:23:52]}
{[%emt 00:03:29]} Rg5 {[%clk 01:04:29]} {[%emt 00:02:27]} 27. Qf2 {[%clk
00:22:38]} {[%emt 00:01:45]} Qe7 {[%clk 01:03:19]} {[%emt 00:01:38]} 28. Bh3
{[%clk 00:22:08]} {[%emt 00:01:01]} Rf8 {[%clk 01:02:45]} {[%emt 00:01:05]} 29.
Rg1 {[%emt 00:03:36]} Rh5 {[%clk 00:58:03]} {[%emt 00:05:10]} 30. Bf1 {[%clk
00:15:29]} {[%emt 00:04:05]} Qh4 {[%clk 00:52:06]} {[%emt 00:06:26]} 31. Qxh4
{[%clk 00:11:50]} {[%emt 00:04:09]} Rxh4 {[%clk 00:52:35]} {[%emt 00:00:02]} 32.
Rg5 {[%clk 00:07:56]} {[%emt 00:04:23]} Ne3 {[%clk 00:50:57]} {[%emt 00:02:07]}
33. Be2 {[%clk 00:06:34]} {[%emt 00:01:54]} Bh5 {[%clk 00:46:59]} {[%emt
00:04:27]} 34. Rxh5 {[%clk 00:01:35]} {[%emt 00:05:29]} Rxh5 {[%clk 00:46:57]}
{[%emt 00:00:32]} 35. Nd6 {[%clk 00:01:48]} {[%emt 00:00:18]} b6 {[%clk
00:46:32]} {[%emt 00:00:55]} 36. Bc4 {[%clk 00:01:23]} {[%emt 00:00:55]} Nxc4
{[%clk 00:46:18]} {[%emt 00:00:44]} 37. Nxc4 {[%clk 00:01:48]} {[%emt
00:00:05]} Rd8 {[%clk 00:46:12]} {[%emt 00:00:36]} 38. Nd6 {[%clk 00:01:18]}
{[%emt 00:01:00]} bxc5 {[%clk 00:46:15]} {[%emt 00:00:26]} 39. dxc5 {[%clk
00:01:45]} {[%emt 00:00:04]} Rxe5 {[%clk 00:46:24]} {[%emt 00:00:20]} 40. b4
{[%clk 00:01:28]} {[%emt 00:00:48]} a5 {[%clk 00:43:04]} {[%emt 00:03:50]} 41.
a3 {[%emt 00:01:08]} axb4 {[%clk 00:43:01]} {[%emt 00:00:31]} 42. axb4 {[%clk
00:01:15]} {[%emt 00:00:07]} Rb8 {[%clk 00:43:08]} {[%emt 00:00:22]} 43. Ra2
{[%clk 00:01:15]} {[%emt 00:00:31]} h6 {[%clk 00:43:16]} {[%emt 00:00:22]} 44.
Ra4 {[%clk 00:01:12]} {[%emt 00:00:33]} Re1+ {[%clk 00:43:04]} {[%emt
00:00:42]} 45. Kg2 {[%clk 00:01:36]} {[%emt 00:00:07]} Re2+ {[%clk 00:42:53]}
{[%emt 00:00:41]} 46. Kg1 {[%clk 00:01:47]} {[%emt 00:00:19]} Rb2 {[%clk
00:43:03]} {[%emt 00:00:20]} 47. b5 {[%clk 00:01:59]} {[%emt 00:00:18]} R8xb5
{[%clk 00:42:16]} {[%emt 00:01:17]} 48. Nxb5 {[%clk 00:00:51]} {[%emt
00:01:38]} Rxb5 {[%clk 00:42:40]} {[%emt 00:00:05]} 49. Rxf4 {[%clk 00:00:33]}
{[%emt 00:00:48]} Rxc5 {[%clk 00:43:06]} {[%emt 00:00:05]} 50. Kf2 {[%clk
00:00:48]} {[%emt 00:00:15]} Rf5 {[%clk 00:42:53]} {[%emt 00:00:43]} 51. Rc4
{[%clk 00:00:59]} {[%emt 00:00:18]} c5 {[%clk 00:43:22]} {[%emt 00:00:02]} 52.
Ke3 {[%clk 00:01:20]} {[%emt 00:00:09]} Kf7 {[%clk 00:43:40]} {[%emt 00:00:12]}
53. h4 {[%clk 00:01:25]} {[%emt 00:00:25]} Kf6 {[%clk 00:43:50]} {[%emt
00:00:19]} 54. Rg4 {[%clk 00:01:25]} {[%emt 00:00:30]} g6 {[%clk 00:43:19]}
{[%emt 00:01:01]} 55. Ra4 {[%clk 00:01:45]} {[%emt 00:00:11]} Re5+ {[%clk
00:43:23]} {[%emt 00:00:26]} 56. Kd3 {[%clk 00:01:58]} {[%emt 00:00:17]} Rd5+
{[%clk 00:43:46]} {[%emt 00:00:07]} 57. Ke3 {[%clk 00:01:49]} {[%emt 00:00:39]}
Rd4 {[%clk 00:44:03]} {[%emt 00:00:13]} 58. Ra5 {[%clk 00:01:54]} {[%emt
00:00:25]} Rxh4 {[%clk 00:44:24]} {[%emt 00:00:08]} 59. Rxc5 {[%clk 00:02:17]}
{[%emt 00:00:08]} h5 {[%clk 00:44:49]} {[%emt 00:00:05]} 60. Rc8 {[%clk
00:02:04]} {[%emt 00:00:44]} Ra4 {[%clk 00:45:02]} {[%emt 00:00:15]} 61. Kd4
{[%emt 00:00:15]} Ke5+ 62. Ra8+ {[%clk 00:01:48]} Rxa8+ {[%clk 00:45:02]} 0-1

[Event "Kvibergspelen 2022"]
[Site "Kviberg Park Hotel & Conference, Krutvagen 2, Gothenburg, Sweden"]
[Date "2022.10.01"]
[Round "6.12"]
[White "Lindahl, Jonas"]
[Black "Jakenberg, Jussi"]
[Result "1/2-1/2"]
[TimeControl "15 minutes + 5 seconds per move from move one (Round 1 - 4) / 90 minutes + 30 seconds per move from move one (Round 5 - 8)"]
[WhiteFideId "1710060"]
[BlackFideId "1710931"]
[WhiteElo "2165"]
[BlackElo "2114"]

1. b3 {[%clk 01:30:56]} {[%emt 00:00:03]} d5 {[%clk 01:30:36]} {[%emt
00:00:24]} 2. Bb2 {[%clk 01:30:47]} {[%emt 00:00:40]} c5 {[%clk 01:31:02]}
{[%emt 00:00:04]} 3. e3 {[%clk 01:31:07]} {[%emt 00:00:10]} Nf6 {[%clk
01:31:10]} {[%emt 00:00:21]} 4. Bb5+ {[%clk 01:31:11]} {[%emt 00:00:27]} Nbd7
{[%clk 01:25:18]} {[%emt 00:06:21]} 5. f4 {[%clk 01:30:08]} {[%emt 00:01:33]}
a6 {[%clk 01:25:09]} {[%emt 00:00:39]} 6. Be2 {[%clk 01:29:52]} {[%emt
00:00:46]} g6 {[%clk 01:24:35]} {[%emt 00:01:05]} 7. Bf3 {[%clk 01:25:42]}
{[%emt 00:04:39]} e6 {[%clk 01:22:46]} {[%emt 00:02:18]} 8. c4 {[%clk
01:25:15]} {[%emt 00:00:58]} dxc4 {[%clk 01:21:48]} {[%emt 00:01:29]} 9. bxc4
{[%clk 01:25:38]} {[%emt 00:00:07]} Bg7 {[%clk 01:22:16]} {[%emt 00:00:01]} 10.
Ne2 {[%clk 01:18:52]} {[%emt 00:07:16]} O-O {[%clk 01:21:09]} {[%emt 00:01:38]}
11. O-O {[%clk 01:13:43]} {[%emt 00:05:39]} Rb8 {[%clk 01:18:21]} {[%emt
00:03:17]} 12. a4 {[%clk 01:12:35]} {[%emt 00:01:38]} b6 {[%clk 01:16:26]}
{[%emt 00:02:25]} 13. Nbc3 {[%clk 01:04:37]} {[%emt 00:08:28]} Bb7 {[%clk
01:15:52]} {[%emt 00:01:04]} 14. Qc2 {[%clk 01:03:29]} {[%emt 00:01:38]} Bxf3
{[%clk 01:14:23]} {[%emt 00:01:59]} 15. Rxf3 {[%clk 01:03:49]} {[%emt
00:00:13]} Qc7 {[%clk 01:13:00]} {[%emt 00:01:51]} 16. e4 {[%clk 01:01:17]}
{[%emt 00:03:01]} Ne8 {[%clk 00:59:20]} {[%emt 00:14:10]} 17. h4 {[%clk
00:49:53]} {[%emt 00:11:54]} Rd8 {[%clk 00:58:32]} {[%emt 00:01:17]} 18. h5
{[%clk 00:49:38]} {[%emt 00:00:45]} Nb8 {[%clk 00:55:57]} {[%emt 00:03:05]} 19.
e5 {[%clk 00:46:51]} {[%emt 00:03:18]} Nc6 {[%clk 00:51:04]} {[%emt 00:05:23]}
20. Ne4 {[%clk 00:46:41]} {[%emt 00:00:39]} Nb4 {[%clk 00:46:21]} {[%emt
00:05:14]} 21. Qb1 {[%clk 00:46:56]} {[%emt 00:00:14]} Rd7 {[%clk 00:38:14]}
{[%emt 00:08:37]} 22. Rh3 {[%clk 00:41:57]} {[%emt 00:05:29]} Qd8 {[%clk
00:37:24]} {[%emt 00:01:21]} 23. hxg6 {[%clk 00:38:13]} {[%emt 00:04:14]} hxg6
{[%clk 00:37:24]} {[%emt 00:00:29]} 24. Raa3 {[%clk 00:34:22]} {[%emt
00:04:21]} f5 {[%clk 00:30:59]} {[%emt 00:06:55]} 25. exf6 {[%clk 00:32:41]}
{[%emt 00:02:12]} Nxf6 {[%clk 00:31:21]} {[%emt 00:00:08]} 26. Bxf6 {[%clk
00:29:57]} {[%emt 00:03:14]} Bxf6 {[%clk 00:30:48]} {[%emt 00:01:02]} 27. Rag3
{[%clk 00:29:46]} {[%emt 00:00:40]} Rg7 {[%clk 00:29:00]} {[%emt 00:02:18]} 28.
Rh6 {[%clk 00:28:46]} {[%emt 00:01:31]} Kf7 {[%clk 00:26:04]} {[%emt 00:03:26]}
29. d4 {[%clk 00:26:36]} {[%emt 00:02:40]} Bxd4+ {[%clk 00:21:48]} {[%emt
00:04:46]} 30. Nxd4 {[%clk 00:23:50]} {[%emt 00:03:16]} Qxd4+ {[%clk 00:21:01]}
{[%emt 00:01:16]} 31. Kh2 {[%clk 00:24:13]} {[%emt 00:00:07]} Ke7 {[%clk
00:17:36]} {[%emt 00:03:55]} 32. Ng5 {[%clk 00:15:24]} {[%emt 00:09:19]} Rxf4
{[%clk 00:11:40]} {[%emt 00:06:26]} 33. Rxg6 {[%clk 00:13:38]} {[%emt
00:02:16]} Rxg6 {[%clk 00:08:51]} {[%emt 00:03:20]} 34. Qxg6 {[%clk 00:13:45]}
{[%emt 00:00:23]} Rh4+ {[%clk 00:09:20]} {[%emt 00:00:01]} 35. Nh3 {[%clk
00:08:36]} {[%emt 00:05:39]} Qe5 {[%clk 00:06:19]} {[%emt 00:03:30]} 36. Kh1
{[%clk 00:06:49]} {[%emt 00:02:17]} Qe1+ {[%clk 00:06:24]} {[%emt 00:00:25]} 37.
Kh2 {[%clk 00:07:09]} {[%emt 00:00:11]} Qe5 {[%clk 00:06:52]} {[%emt 00:00:02]}
38. Kh1 {[%clk 00:07:22]} {[%emt 00:00:16]} Rxc4 {[%clk 00:03:59]} {[%emt
00:03:24]} 39. Qh7+ {[%clk 00:07:14]} {[%emt 00:00:38]} Kd6 {[%clk 00:04:26]}
{[%emt 00:00:02]} 40. Qg8 {[%clk 00:05:50]} {[%emt 00:01:54]} Rc1+ {[%clk
00:04:05]} {[%emt 00:00:51]} 41. Kh2 {[%clk 00:04:34]} {[%emt 00:01:45]} Nc6
{[%clk 00:03:00]} {[%emt 00:01:36]} 42. Qf8+ {[%clk 00:04:28]} {[%emt
00:00:36]} Kd7 {[%clk 00:02:33]} {[%emt 00:00:56]} 43. Nf4 {[%clk 00:04:21]}
{[%emt 00:00:38]} Ne7 {[%clk 00:01:23]} {[%emt 00:01:40]} 44. Rd3+ {[%clk
00:01:17]} {[%emt 00:03:34]} Nd5 {[%clk 00:01:36]} {[%emt 00:00:18]} 45. Qf7+
{[%clk 00:01:10]} {[%emt 00:00:37]} Kc6 {[%clk 00:01:13]} {[%emt 00:00:51]} 46.
Qe8+ {[%clk 00:00:41]} {[%emt 00:01:01]} Kc7 {[%clk 00:01:03]} {[%emt
00:00:40]} 47. Qf7+ {[%clk 00:00:46]} {[%emt 00:00:25]} Kc6 {[%clk 00:01:29]}
{[%emt 00:00:04]} 48. Qe8+ {[%clk 00:01:08]} {[%emt 00:00:08]} Kc7 {[%clk
00:00:46]} {[%emt 00:01:12]} 49. Qf7+ {[%clk 00:00:49]} {[%emt 00:00:49]}
1/2-1/2